bitfinex/quotes_ETHUSD_20220118
["timestamp","ask_amount","ask_price","bid_price","bid_amount"]
[1642549545209,7.34260822,3170.0,3169.9,1.86412071]
[1642549545416,7.34260822,3170.0,3169.9,1.40912071]
[1642549546215,7.46860822,3170.0,3169.9,1.40912071]
[1642549546510,7.92639822,3170.0,3169.9,1.40912071]
[1642549546707,5.55,3169.9,3169.8,0.01360077]
[1642549546956,8.8891995,3169.9,3169.8,0.00010077]
[1642549547153,8.8891995,3169.9,3169.3,3.21241495]
[1642549547154,0.78898,3169.8,3169.3,3.21241495]
[1642549547355,1.3449059,3169.4,3169.3,3.21241495]
[1642549547753,1.35059014,3169.4,3169.3,3.21241495]
[1642549551410,0.00568424,3169.4,3169.3,3.21241495]
[1642549555563,5.4,3169.3,3168.8,0.1262]
[1642549555962,0.00454739,3169.2,3168.8,0.1262]
[1642549556361,0.00397897,3169.1,3168.8,0.1262]
[1642549556763,0.1262,3169.4,3168.8,0.1262]
[1642549556764,0.00341054,3169.0,3168.8,0.1262]
[1642549557163,0.00284212,3168.9,3168.8,0.1262]
[1642549559215,0.00284212,3168.9,3168.5,3.9894875]
[1642549559216,0.00284212,3168.9,3168.6,0.1262]
[1642549559610,0.0022737,3168.8,3168.6,0.1262]
[1642549560016,0.00170527,3168.7,3168.6,0.1262]
[1642549560316,0.00170527,3168.7,3168.6,3.6762]
[1642549565621,3.10170527,3168.7,3168.6,3.6762]
[1642549565812,3.10170527,3168.7,3168.6,0.1262]
[1642549566815,3.10170527,3168.7,3168.6,1.35973592]
[1642549568416,3.10170527,3168.7,3168.6,1.23353592]
[1642549568617,3.09073387,3168.7,3168.6,1.23353592]
[1642549570153,3.09073387,3168.7,3168.6,4.28353592]
[1642549570354,3.09073387,3168.7,3168.6,5.98757592]
[1642549570551,3.09073387,3168.7,3168.6,2.93757592]
[1642549572561,3.09073387,3168.7,3168.6,2.81137592]
[1642549576612,3.09073387,3168.7,3168.6,1.23353592]
[1642549576856,4.28818309,3168.7,3168.6,1.23353592]
[1642549578260,3.09073387,3168.7,3168.6,1.23353592]
[1642549588707,3.09073387,3168.7,3168.6,1.35973592]
[1642549588907,3.09073387,3168.7,3168.6,3.55973592]
[1642549589507,3.09073387,3168.7,3168.6,1.35973592]
[1642549592057,3.09073387,3168.7,3168.6,1.23353592]
[1642549599658,3.09073387,3168.7,3168.6,1.35973592]
[1642549599858,3.09073387,3168.7,3168.6,4.28944842]
[1642549600059,3.04073387,3168.7,3168.6,4.28944842]
[1642549600659,3.04073387,3168.7,3168.6,1.35973592]
[1642549601065,3.04073387,3168.7,3168.6,2.35973592]
[1642549601665,3.04073387,3168.7,3168.6,4.00591703]
[1642549601862,3.04073387,3168.7,3168.6,5.00591703]
[1642549602463,3.04073387,3168.7,3168.6,4.00591703]
[1642549602763,3.04073387,3168.7,3168.6,1.35973592]
[1642549603617,3.04073387,3168.7,3168.6,1.23353592]
[1642549605814,3.04073387,3168.7,3168.5,2.96380497]
[1642549606221,3.04073387,3168.7,3168.6,9.2519887]
[1642549606618,3.04073387,3168.7,3168.6,7.83353592]
[1642549607058,3.04073387,3168.7,3168.6,10.45036394]
[1642549607259,3.04073387,3168.7,3168.6,4.85036394]
[1642549607464,3.04073387,3168.7,3168.6,2.35973592]
[1642549607662,3.04073387,3168.7,3168.6,1.35973592]
[1642549607864,3.04073387,3168.7,3168.6,1.23353592]
[1642549608162,3.04073387,3168.7,3168.6,2.83760497]
[1642549608965,3.04073387,3168.7,3168.3,2.83760497]
[1642549609166,3.82984387,3168.7,3168.3,2.83760497]
[1642549609365,3.82984387,3168.7,3168.4,0.00170527]
[1642549609767,3.04073387,3168.7,3168.4,0.79074527]
[1642549609970,5.5315799,3168.6,3168.0,2.41314927]
[1642549610173,6.33388867,3168.6,3168.0,2.41314927]
[1642549610367,6.33388867,3168.6,3168.1,0.00170527]
[1642549610633,3.77850877,3168.6,3168.1,0.00170527]
[1642549610830,0.7894,3168.4,3168.1,0.00170527]
[1642549611034,0.4262,3168.3,3168.1,0.00170527]
[1642549611232,1.21561,3168.3,3168.1,0.00170527]
[1642549611435,0.91561,3168.3,3168.1,0.00170527]
[1642549612229,19.41561,3168.3,3168.1,0.00170527]
[1642549612431,5.08441665,3168.2,3168.1,0.00170527]
[1642549612730,6.30002665,3168.2,3168.1,0.00170527]
[1642549613531,7.51642665,3168.2,3168.1,0.00170527]
[1642549613833,4.95,3168.1,3168.0,0.006]
[1642549614036,8.18995435,3168.1,3168.0,0.006]
[1642549617464,8.18995435,3168.1,3167.0,2.53334927]
[1642549617465,0.78955,3167.8,3167.0,2.53334927]
[1642549617664,0.1262,3167.7,3167.0,2.40714927]
[1642549617863,0.1262,3167.7,3167.1,0.00568423]
[1642549618310,0.1262,3167.8,3167.1,0.00568423]
[1642549618611,0.78957,3167.6,3167.0,0.00625266]
[1642549618810,0.1262,3167.5,3167.0,0.00625266]
[1642549619010,0.78957,3167.6,3167.0,0.13245266]
[1642549619413,6.73267,3167.6,3167.0,0.00625266]
[1642549619710,9.66630458,3167.6,3166.7,0.00795793]
[1642549619912,9.66630458,3167.6,3166.8,0.1262]
[1642549620114,9.66630458,3167.6,3166.8,1.72576194]
[1642549620316,9.66630458,3167.6,3166.9,0.00682108]
[1642549620514,0.78958,3167.4,3167.0,0.1262]
[1642549621512,1.57915,3167.4,3167.0,0.1262]
[1642549623160,4.39129922,3167.4,3167.0,0.1262]
[1642549624562,5.18089922,3167.4,3167.0,0.1262]
[1642549625361,2.17987649,3167.3,3166.9,0.13302108]
[1642549625609,2.17987649,3167.3,3166.9,0.00682108]
[1642549625610,5.43007919,3167.2,3166.9,0.00682108]
[1642549625810,5.43007919,3167.2,3166.5,2.40714927]
[1642549625811,5.8263,3167.1,3167.0,0.00625266]
[1642549626010,8.89457526,3167.1,3166.8,0.0073895]
[1642549626310,8.89457526,3167.1,3166.6,0.00852635]
[1642549626509,0.78966,3167.0,3166.6,0.00852635]
[1642549626711,2.83086398,3166.9,3166.6,0.00852635]
[1642549627110,0.78966,3167.0,3166.3,0.01023162]
[1642549627710,1.5793119,3167.0,3166.3,0.01023162]
[1642549628111,3.66863571,3166.9,3166.3,0.01023162]
[1642549628715,3.66863571,3166.9,3165.9,1.69932649]
[1642549628915,1.58227212,3166.8,3165.9,1.69932649]
[1642549629114,1.58227212,3166.8,3166.0,0.00170527]
[1642549629115,2.8566908,3166.7,3166.0,0.00170527]
[1642549629369,2.8566908,3166.7,3166.1,0.1263]
[1642549629370,2.85896449,3166.7,3166.1,0.1263]
[1642549629568,0.00170527,3166.6,3166.1,0.1263]
[1642549629763,0.00170527,3166.6,3166.0,0.1263]
[1642549629964,0.00113685,3166.5,3166.0,0.1263]
[1642549630165,0.78971,3166.4,3166.1,0.00113685]
[1642549630364,0.78971,3166.4,3166.2,0.1263]
[1642549631369,0.78971,3166.4,3166.3,0.8485862]
[1642549632373,3.62808624,3166.4,3166.3,0.8485862]
[1642549633221,3.62808624,3166.4,3166.1,0.00113685]
[1642549633421,3.00787,3166.2,3166.1,0.00113685]
[1642549633620,3.00787,3166.2,3165.7,0.00341054]
[1642549633621,3.79771,3166.2,3165.7,0.00341054]
[1642549633821,3.79131682,3166.2,3165.7,0.00341054]
[1642549634020,3.79131682,3166.2,3165.6,0.00397896]
[1642549634222,3.79131682,3166.2,3165.7,0.93157049]
[1642549634622,3.79131682,3166.2,3165.8,0.00284212]
[1642549636228,0.94771,3166.2,3165.8,0.00284212]
[1642549636426,0.94771,3166.2,3165.7,0.00341054]
[1642549636626,0.94771,3166.2,3165.7,0.93498103]
[1642549637064,0.94771,3166.2,3165.8,0.00284212]
[1642549637468,4.04771,3166.2,3165.8,0.00284212]
[1642549637666,5.6275203,3166.2,3165.8,0.00284212]
[1642549637868,1.21624,3166.1,3165.8,0.00284212]
[1642549638075,1.21624,3166.1,3165.5,0.00454739]
[1642549638869,0.9478574,3166.0,3165.5,0.00454739]
[1642549639072,0.78994,3165.8,3165.5,0.00454739]
[1642549639469,1.08994,3165.8,3165.5,0.00454739]
[1642549639869,1.24781,3165.8,3165.5,0.00454739]
[1642549640719,1.24781,3165.8,3165.5,1.51201824]
[1642549640920,1.24781,3165.8,3165.5,0.00454739]
[1642549641123,1.24781,3165.8,3165.6,0.00397896]
[1642549641323,1.24781,3165.8,3165.5,0.00454739]
[1642549641521,0.94781,3165.8,3165.5,0.00454739]
[1642549641822,0.78994,3165.8,3165.5,0.00454739]
[1642549645666,0.78994,3165.8,3165.5,1.13084739]
[1642549645867,0.78994,3165.8,3165.5,0.13084739]
[1642549646069,0.78994,3165.8,3165.6,0.00397896]
[1642549646670,0.78994,3165.8,3165.5,0.00454739]
[1642549647667,2.3699073,3165.8,3165.5,0.00454739]
[1642549648315,5.18124825,3165.8,3165.5,0.00454739]
[1642549648716,2.3699073,3165.8,3165.5,0.00454739]
[1642549649820,3.15787,3165.6,3165.5,0.00454739]
[1642549650018,6.47903544,3165.6,3165.5,0.00454739]
[1642549650222,6.17903544,3165.6,3165.5,0.00454739]
[1642549650622,6.99523544,3165.6,3165.5,0.00454739]
[1642549651420,3.97407,3165.6,3165.5,0.00454739]
[1642549651870,3.15787,3165.6,3165.5,0.00454739]
[1642549652565,6.0167562,3165.6,3165.5,0.00454739]
[1642549654270,3.0167562,3165.6,3165.5,0.00454739]
[1642549654669,0.15787,3165.6,3165.5,0.00454739]
[1642549655070,2.9401974,3165.6,3165.5,0.00454739]
[1642549655717,0.15787,3165.6,3165.5,0.00454739]
[1642549656118,2.50787,3165.6,3165.5,0.00454739]
[1642549656319,5.31297449,3165.6,3165.5,0.00454739]
[1642549656524,2.50787,3165.6,3165.5,0.00454739]
[1642549656929,0.15787,3165.6,3165.5,0.00454739]
[1642549658326,0.15787,3165.6,3165.4,5.16931755]
[1642549658327,0.78984,3165.6,3165.4,5.16931755]
[1642549659128,3.58427275,3165.6,3165.4,5.16931755]
[1642549659372,0.78984,3165.6,3165.5,0.80070273]
[1642549660170,0.94771,3165.6,3165.4,5.16931755]
[1642549660970,3.77895012,3165.6,3165.4,5.16931755]
[1642549661171,0.94771,3165.6,3165.4,5.16931755]
[1642549661572,3.76853916,3165.6,3165.4,5.16931755]
[1642549661972,0.15787,3165.5,3165.4,5.16931755]
[1642549662376,0.78984,3165.6,3165.4,5.16931755]
[1642549663120,0.78984,3165.6,3165.4,5.96913926]
[1642549663323,1.5798884,3165.6,3165.4,5.96913926]
[1642549663617,2.0061884,3165.6,3165.4,5.96913926]
[1642549663824,2.0061884,3165.6,3165.5,0.79982171]
[1642549664518,2.0061884,3165.6,3165.4,5.16931755]
[1642549665927,1.21614,3165.6,3165.4,5.16931755]
[1642549666966,1.21614,3165.6,3165.5,0.80114343]
[1642549667166,1.08984,3165.6,3165.5,0.80114343]
[1642549668272,1.24778,3165.6,3165.5,0.80114343]
[1642549672115,1.54778,3165.6,3165.5,0.80114343]
[1642549672517,5.15613724,3165.6,3165.5,0.80114343]
[1642549672719,2.03785,3165.6,3165.5,0.80114343]
[1642549673119,4.82906836,3165.6,3165.5,0.80114343]
[1642549673320,3.63795,3165.6,3165.5,0.80114343]
[1642549673519,22.13795,3165.6,3165.5,0.80114343]
[1642549673724,24.8902,3165.5,3165.1,1.5]
[1642549673921,3.1607819,3165.4,3165.1,1.5]
[1642549674120,4.15,3165.3,3165.1,1.5]
[1642549674369,3.10794,3165.2,3165.1,1.5]
[1642549674564,0.45794,3165.2,3165.1,1.5]
[1642549674963,2.55794,3165.2,3165.1,1.5]
[1642549675363,0.7902,3165.1,3164.6,0.1263]
[1642549675564,0.7902,3164.9,3164.6,0.1263]
[1642549675765,0.7902,3164.9,3164.7,0.00284211]
[1642549676370,0.7902,3164.9,3164.6,0.00341054]
[1642549677365,1.15185615,3164.9,3164.6,0.00341054]
[1642549678224,4.25185615,3164.9,3164.6,0.00341054]
[1642549679525,4.25185615,3164.9,3164.6,1.59258954]
[1642549681726,0.15794,3164.7,3164.6,1.59258954]
[1642549682571,4.55185615,3164.9,3164.6,0.00341054]
[1642549682572,4.25185615,3164.9,3164.6,0.00341054]
[1642549682973,0.15794,3164.7,3164.6,0.00341054]
[1642549683171,0.15794,3164.7,3164.6,1.60821487]
[1642549683973,1.58045,3164.8,3164.6,0.00341054]
[1642549684572,1.58045,3164.8,3164.5,0.00397896]
[1642549687615,1.58045,3164.8,3164.5,1.60878329]
[1642549688016,1.58045,3164.8,3164.6,0.00341054]
[1642549688218,0.15794,3164.7,3164.6,0.00341054]
[1642549689016,1.58045,3164.8,3164.6,0.00341054]
[1642549692075,0.15794,3164.7,3164.6,0.00341054]
[1642549693121,1.58045,3164.8,3164.6,0.00341054]
[1642549693524,1.58045,3164.8,3164.5,0.00397896]
[1642549693924,1.58045,3164.8,3164.5,1.60878329]
[1642549694123,3.1,3164.9,3164.5,2.74083687]
[1642549694324,3.1,3164.9,3164.6,0.12971054]
[1642549694524,3.1,3164.9,3164.6,1.12971054]
[1642549695229,3.1,3164.9,3164.6,2.70950054]
[1642549695428,3.1,3164.9,3164.7,0.75240665]
[1642549695627,3.1,3164.9,3164.8,0.1263]
[1642549695826,3.1,3164.9,3164.8,0.12857369]
[1642549696427,3.1,3164.9,3164.8,0.00227369]
[1642549697165,3.1,3164.9,3164.8,0.75468034]
[1642549697763,3.1,3164.9,3164.8,3.55468034]
[1642549697964,3.1,3164.9,3164.8,4.55468034]
[1642549698168,3.1,3164.9,3164.8,4.56740436]
[1642549698568,3.1,3164.9,3164.8,6.45670315]
[1642549698769,3.1,3164.9,3164.8,5.02240436]
[1642549699371,3.1,3164.9,3164.8,5.14870436]
[1642549699669,3.1,3164.9,3164.8,5.13598034]
[1642549700069,3.05,3164.9,3164.8,5.13598034]
[1642549700269,3.05,3164.9,3164.8,2.33598034]
[1642549701923,3.05,3164.9,3164.8,1.75468034]
[1642549702125,3.05,3164.9,3164.8,0.75468034]
[1642549704124,3.05,3164.9,3164.8,0.00227369]
[1642549705382,3.05,3164.9,3164.8,0.75468034]
[1642549713075,3.05,3164.9,3164.8,1.75468034]
[1642549713473,3.05,3164.9,3164.8,2.36024598]
[1642549714676,3.05,3164.9,3164.8,1.60783933]
[1642549715474,3.05,3164.9,3164.8,0.00227369]
[1642549717722,3.05,3164.9,3164.8,1.90800104]
[1642549718121,3.05,3164.9,3164.8,1.91850369]
[1642549719124,3.05,3164.9,3164.8,2.66984285]
[1642549719378,3.05,3164.9,3164.8,2.54354285]
[1642549720577,3.05,3164.9,3164.8,4.92764149]
[1642549722079,3.05,3164.9,3164.8,2.54354285]
[1642549725147,3.05,3164.9,3164.8,2.66984285]
[1642549725451,3.05,3164.9,3164.8,9.63294285]
[1642549725648,3.05,3164.9,3164.8,9.63854285]
[1642549725846,3.05,3164.9,3164.8,9.63706916]
[1642549726047,3.05,3164.9,3164.8,9.63546916]
[1642549726253,3.05,3164.9,3164.8,9.63626916]
[1642549726447,3.05,3164.9,3164.8,9.63386916]
[1642549726647,3.05,3164.9,3164.8,9.63466916]
[1642549726864,3.05,3164.9,3164.8,9.63386916]
[1642549727067,3.05,3164.9,3164.8,12.84821183]
[1642549727266,0.68570574,3164.9,3164.8,12.84741183]
[1642549727464,0.68570574,3164.9,3164.8,12.84901183]
[1642549727666,0.68570574,3164.9,3164.8,12.84341183]
[1642549727866,0.68570574,3164.9,3164.8,12.84501183]
[1642549728068,0.68570574,3164.9,3164.8,12.84181183]
[1642549728473,0.68570574,3164.9,3164.8,12.84261183]
[1642549728669,0.68570574,3164.9,3164.8,9.62586916]
[1642549728876,0.68570574,3164.9,3164.8,9.62746916]
[1642549729473,0.63201683,3164.9,3164.8,9.62346916]
[1642549729771,0.63201683,3164.9,3164.8,9.62266916]
[1642549729973,0.63201683,3164.9,3164.8,12.84021183]
[1642549730173,0.63201683,3164.9,3164.8,12.71781183]
[1642549731024,0.63201683,3164.9,3164.8,9.50266916]
[1642549731223,0.63201683,3164.9,3164.8,3.97106916]
[1642549731428,0.63201683,3164.9,3164.8,6.24096916]
[1642549731623,0.63201683,3164.9,3164.8,6.12256916]
[1642549731923,0.63201683,3164.9,3164.8,6.24256916]
[1642549732123,0.63201683,3164.9,3164.8,6.11546916]
[1642549732322,0.63201683,3164.9,3164.8,6.11626916]
[1642549732522,0.63201683,3164.9,3164.8,6.11706916]
[1642549732725,0.63201683,3164.9,3164.8,6.11786916]
[1642549732922,0.63201683,3164.9,3164.8,3.11706916]
[1642549733122,0.63201683,3164.9,3164.8,2.99626916]
[1642549734376,0.63201683,3164.9,3164.8,5.4043612]
[1642549736073,0.63201683,3164.9,3164.8,2.99626916]
[1642549736477,0.63201683,3164.9,3164.8,5.60752726]
[1642549736673,0.63201683,3164.9,3164.8,8.0156193]
[1642549737872,0.63201683,3164.9,3164.8,8.1348193]
[1642549738116,0.63201683,3164.9,3164.8,8.1340193]
[1642549738323,0.63201683,3164.9,3164.8,8.0156193]
[1642549738822,0.63201683,3164.9,3164.8,5.4043612]
[1642549739324,0.63201683,3164.9,3164.8,2.99626916]
[1642549739925,0.63201683,3164.9,3164.8,4.60158594]
[1642549740328,0.63201683,3164.9,3164.8,7.28201302]
[1642549740925,0.63201683,3164.9,3164.8,5.67669624]
[1642549743578,0.63201683,3164.9,3164.8,2.99626916]
[1642549744182,0.63201683,3164.9,3164.8,4.60183848]
[1642549744579,0.63201683,3164.9,3164.8,2.99626916]
[1642549744778,0.63201683,3164.9,3164.8,5.59411378]
[1642549746223,0.63201683,3164.9,3164.8,5.71571378]
[1642549746424,0.63201683,3164.9,3164.8,5.71251378]
[1642549746623,0.63201683,3164.9,3164.8,2.99626916]
[1642549747026,0.63201683,3164.9,3164.8,5.58631488]
[1642549747425,0.63201683,3164.9,3164.8,2.99626916]
[1642549748529,0.63201683,3164.9,3164.8,0.75133916]
[1642549749580,1.42204683,3164.9,3164.7,0.75133916]
[1642549750576,1.42204683,3164.9,3164.8,0.75133916]
[1642549750976,1.72204683,3164.9,3164.8,0.75133916]
[1642549751176,1.54834683,3164.9,3164.8,0.75133916]
[1642549751376,0.63201683,3164.9,3164.8,0.75133916]
[1642549752676,0.63201683,3164.9,3164.8,1.54125916]
[1642549753525,0.63201683,3164.9,3164.8,0.75133916]
[1642549759577,0.92275024,3164.9,3164.8,0.75133916]
[1642549760630,2.95835756,3164.9,3164.8,0.75133916]
[1642549760829,2.66762415,3164.9,3164.8,0.75133916]
[1642549762129,0.63201683,3164.9,3164.8,0.75133916]
[1642549763737,0.78995683,3164.9,3164.8,0.75133916]
[1642549766780,1.07376397,3164.9,3164.8,0.75133916]
[1642549767782,0.91582397,3164.9,3164.8,0.75133916]
[1642549774393,1.07376397,3164.9,3164.8,0.75133916]
[1642549774593,0.91582397,3164.9,3164.8,0.75133916]
[1642549775400,1.07376397,3164.9,3164.8,0.75133916]
[1642549776236,0.91582397,3164.9,3164.8,0.75133916]
[1642549776825,1.21582397,3164.9,3164.8,0.75133916]
[1642549777828,0.91582397,3164.9,3164.8,0.75133916]
[1642549781985,1.07376397,3164.9,3164.8,0.75133916]
[1642549784029,0.91582397,3164.9,3164.8,0.75133916]
[1642549784428,1.07376397,3164.9,3164.8,0.75133916]
[1642549788687,3.11493053,3164.9,3164.8,0.75133916]
[1642549789486,2.67318339,3164.9,3164.8,0.75133916]
[1642549789686,2.67318339,3164.9,3164.8,5.65133916]
[1642549789886,0.63201683,3164.9,3164.8,5.65133916]
[1642549790086,0.63201683,3164.9,3164.8,6.65133916]
[1642549790487,0.63201683,3164.9,3164.8,8.23101916]
[1642549790934,0.63201683,3164.9,3164.8,3.33101916]
[1642549791132,0.63201683,3164.9,3164.8,1.75133916]
[1642549791336,0.63201683,3164.9,3164.8,0.87763916]
[1642549792036,0.63201683,3164.9,3164.8,0.75133916]
[1642549793444,0.63201683,3164.9,3164.8,1.54125916]
[1642549793640,0.63201683,3164.9,3164.8,4.84125916]
[1642549793840,0.63201683,3164.9,3164.8,5.55335916]
[1642549794041,0.63201683,3164.9,3164.8,6.55335916]
[1642549794244,0.63201683,3164.9,3164.8,3.25335916]
[1642549794879,0.63201683,3164.9,3164.8,4.53562773]
[1642549795080,0.63201683,3164.9,3164.8,4.66192773]
[1642549796484,0.63201683,3164.9,3164.8,6.26762551]
[1642549799341,0.63201683,3164.9,3164.8,4.98535694]
[1642549799539,0.63201683,3164.9,3164.8,2.48333694]
[1642549800241,0.63201683,3164.9,3164.8,0.87763916]
[1642549800444,0.63201683,3164.9,3164.8,0.75133916]
[1642549801883,2.67795746,3164.9,3164.8,0.75133916]
[1642549804492,2.67795746,3164.9,3164.8,3.95133916]
[1642549804891,2.67795746,3164.9,3164.8,8.69182006]
[1642549805191,2.67795746,3164.9,3164.8,10.34812006]
[1642549805395,2.67795746,3164.9,3164.8,10.34732006]
[1642549805634,2.67795746,3164.9,3164.8,10.34972006]
[1642549805836,0.63201683,3164.9,3164.8,10.22812006]
[1642549806038,0.63201683,3164.9,3164.8,11.96011784]
[1642549807640,0.63201683,3164.9,3164.8,9.38868576]
[1642549807839,0.63201683,3164.9,3164.8,6.61393916]
[1642549808039,0.63201683,3164.9,3164.8,5.53263916]
[1642549808438,0.63201683,3164.9,3164.8,2.33263916]
[1642549809044,0.63201683,3164.9,3164.8,4.9291326]
[1642549809491,0.63201683,3164.9,3164.8,2.33263916]
[1642549809697,0.63201683,3164.9,3164.8,4.93533238]
[1642549810496,0.63201683,3164.9,3164.8,2.33263916]
[1642549811097,0.63201683,3164.9,3164.8,2.20633916]
[1642549811300,0.63201683,3164.9,3164.8,3.81203694]
[1642549811704,0.63201683,3164.9,3164.8,6.38763567]
[1642549811900,0.63201683,3164.9,3164.8,4.78193789]
[1642549812101,0.63201683,3164.9,3164.8,2.20633916]
[1642549812999,0.63201683,3164.9,3164.8,1.20633916]
[1642549813233,0.63201683,3164.9,3164.8,2.20633916]
[1642549813732,0.63201683,3164.9,3164.8,1.20633916]
[1642549814133,2.68894251,3164.9,3164.8,1.20633916]
[1642549814339,2.68894251,3164.9,3164.8,4.45633916]
[1642549814537,2.68894251,3164.9,3164.8,8.04843752]
[1642549814734,2.68894251,3164.9,3164.8,5.45633916]
[1642549814940,0.63201683,3164.9,3164.8,5.45633916]
[1642549815140,0.63201683,3164.9,3164.8,8.03700984]
[1642549815937,0.63201683,3164.9,3164.8,8.16330984]
[1642549816140,0.63201683,3164.9,3164.8,5.58263916]
[1642549816339,0.63201683,3164.9,3164.8,8.19593839]
[1642549816989,0.63201683,3164.9,3164.8,5.58263916]
[1642549817181,0.63201683,3164.9,3164.8,5.45633916]
[1642549817788,0.63201683,3164.9,3164.8,8.03901096]
[1642549818389,0.63201683,3164.9,3164.8,5.45633916]
[1642549818588,0.63201683,3164.9,3164.8,2.20633916]
[1642549820830,0.63201683,3164.9,3164.8,1.20633916]
[1642549821030,0.63201683,3164.9,3164.8,1.33263916]
[1642549821232,0.63201683,3164.9,3164.8,4.55633916]
[1642549821731,0.63201683,3164.9,3164.8,5.55633916]
[1642549822144,0.63201683,3164.9,3164.8,9.9225456]
[1642549822340,0.63201683,3164.9,3164.8,10.0561456]
[1642549822638,0.63201683,3164.9,3164.8,10.0505456]
[1642549822838,0.63201683,3164.9,3164.8,11.65704338]
[1642549823042,0.63201683,3164.9,3164.8,11.65304338]
[1642549823240,0.63201683,3164.9,3164.8,11.64984338]
[1642549823440,0.63201683,3164.9,3164.8,8.94024251]
[1642549823640,0.63201683,3164.9,3164.8,8.82024251]
[1642549824043,0.63201683,3164.9,3164.8,8.93864251]
[1642549824242,0.63201683,3164.9,3164.8,7.28833694]
[1642549824504,0.63201683,3164.9,3164.8,7.40833694]
[1642549824701,0.63201683,3164.9,3164.8,3.93833694]
[1642549825098,0.63201683,3164.9,3164.8,2.33263916]
[1642549825700,0.63201683,3164.9,3164.8,3.93833694]
[1642549827600,0.63201683,3164.9,3164.8,2.33263916]
[1642549827801,0.63201683,3164.9,3164.8,2.20633916]
[1642549828233,0.63201683,3164.9,3164.8,7.07678897]
[1642549828433,0.63201683,3164.9,3164.8,7.19838897]
[1642549828636,0.63201683,3164.9,3164.8,7.07678897]
[1642549828834,0.63201683,3164.9,3164.8,7.19518897]
[1642549829037,0.63201683,3164.9,3164.8,8.80088675]
[1642549829235,0.63201683,3164.9,3164.8,8.68248675]
[1642549829436,0.63201683,3164.9,3164.8,3.93123694]
[1642549829633,0.63201683,3164.9,3164.8,3.93043694]
[1642549829839,0.63201683,3164.9,3164.8,3.81203694]
[1642549830240,0.63201683,3164.9,3164.8,6.11203694]
[1642549830436,0.63201683,3164.9,3164.8,8.82291061]
[1642549830742,0.63201683,3164.9,3164.8,8.70451061]
[1642549831136,0.63201683,3164.9,3164.8,3.81203694]
[1642549831338,0.63201683,3164.9,3164.8,2.35703694]
[1642549831743,1.89325683,3164.9,3164.8,3.694e-05]
[1642549831982,2.19325683,3164.9,3164.6,3.97621164]
[1642549832183,0.1263,3164.8,3164.6,3.97621164]
[1642549832388,0.1263,3164.8,3164.1,2.40797518]
[1642549832389,1.4577293,3164.7,3164.1,2.40797518]
[1642549832585,0.1264,3164.6,3164.1,2.40797518]
[1642549832785,0.7901903,3164.5,3164.2,0.00568423]
[1642549832985,0.1264,3164.4,3164.2,0.00568423]
[1642549833989,2.96052945,3164.4,3164.2,0.00568423]
[1642549834190,2.96052945,3164.4,3163.7,3.94497626]
[1642549834389,2.96052945,3164.4,3163.8,0.00113685]
[1642549834390,0.00170527,3164.3,3163.8,0.00113685]
[1642549834592,1.58211177,3164.3,3163.8,0.00113685]
[1642549834790,0.00113685,3164.2,3163.8,0.00113685]
[1642549835735,0.00113685,3164.2,3163.7,0.00170527]
[1642549837239,0.79138985,3164.2,3163.7,0.00170527]
[1642549837645,1.58163985,3164.2,3163.7,0.00170527]
[1642549838338,4.40179694,3164.2,3163.7,0.00170527]
[1642549838538,3.61154394,3164.2,3163.7,0.00170527]
[1642549838738,3.73794394,3164.2,3163.7,0.00170527]
[1642549838938,0.91778685,3164.2,3163.6,0.00227369]
[1642549839141,0.12753685,3164.2,3163.7,0.79019]
[1642549839386,0.00113685,3164.2,3163.7,0.79019]
[1642549839585,3.10113685,3164.2,3163.7,0.79019]
[1642549841190,2.62589185,3164.2,3163.7,0.79019]
[1642549841391,2.62589185,3164.2,3163.7,0.91659]
[1642549841593,2.62589185,3164.2,3163.8,0.00227369]
[1642549841793,2.62589185,3164.2,3163.8,0.12867369]
[1642549842092,2.62589185,3164.2,3163.9,0.00170527]
[1642549845346,2.82526671,3164.1,3163.9,0.00170527]
[1642549846138,2.82526671,3164.1,3163.8,0.07810527]
[1642549847584,3.61558411,3164.1,3163.8,0.07810527]
[1642549847790,0.79029,3163.9,3163.3,0.1264]
[1642549848188,0.79029,3163.9,3163.4,0.00284212]
[1642549848388,5.6512,3164.1,3163.5,0.1264]
[1642549848788,5.6512,3164.1,3163.6,0.00170527]
[1642549850389,5.6512,3164.1,3163.5,0.0022737]
[1642549850650,5.6512,3164.1,3163.5,0.7924937]
[1642549851035,5.6512,3164.1,3163.6,0.00170527]
[1642549851236,3.54250185,3164.2,3163.6,0.00170527]
[1642549851637,0.00113684,3164.1,3163.6,0.00170527]
[1642549852337,0.01282952,3164.0,3163.6,0.00170527]
[1642549852537,0.01282952,3164.0,3163.6,0.36252061]
[1642549852538,3.82782486,3164.0,3163.6,0.36252061]
[1642549852736,3.82782486,3164.0,3163.6,0.36081534]
[1642549852936,3.82782486,3164.0,3163.7,0.00113685]
[1642549853640,3.81499534,3164.0,3163.7,0.00113685]
[1642549854040,3.81499534,3164.0,3163.6,0.00170527]
[1642549854243,3.57599296,3164.0,3163.7,0.36081534]
[1642549854490,3.57599296,3164.0,3163.0,6.03134308]
[1642549854491,0.7903444,3163.8,3163.0,6.03134308]
[1642549854690,0.78633107,3163.8,3163.0,6.03134308]
[1642549854893,0.79034,3163.7,3163.1,0.00284212]
[1642549855993,1.98007527,3163.9,3163.2,0.79031]
[1642549856193,1.98007527,3163.9,3163.2,0.91671]
[1642549856393,0.00113684,3163.8,3163.3,0.00170527]
[1642549856994,0.00113684,3163.8,3163.3,0.79198527]
[1642549857395,0.00113684,3163.8,3163.4,0.00113685]
[1642549858148,0.00113684,3163.8,3163.3,0.00170527]
[1642549858346,0.00113684,3163.8,3163.4,0.1264]
[1642549858743,0.00113684,3163.8,3163.5,0.79022]
[1642549863092,0.00113684,3163.8,3163.6,0.5814]
[1642549863296,2.62589185,3164.2,3163.8,5.7011]
[1642549863493,2.62589185,3164.2,3163.9,0.5814]
[1642549863696,0.00170527,3164.1,3164.0,0.02248481]
[1642549863891,0.00170527,3164.1,3164.0,6.52291]
[1642549864090,0.00170527,3164.1,3164.0,8.86790919]
[1642549864291,0.00170527,3164.1,3164.0,8.86710919]
[1642549864494,0.00170527,3164.1,3164.0,9.97007842]
[1642549864695,0.00170527,3164.1,3164.0,9.96927842]
[1642549864895,0.00170527,3164.1,3164.0,3.05999919]
[1642549865094,0.00170527,3164.1,3164.0,1.7014]
[1642549865294,0.00170527,3164.1,3164.0,1.5814]
[1642549865495,0.00170527,3164.1,3164.0,0.5814]
[1642549865738,0.00170527,3164.1,3164.0,1.5814]
[1642549865943,0.00170527,3164.1,3164.0,0.455]
[1642549867643,0.00170527,3164.1,3163.7,1.79019]
[1642549867842,0.00170527,3164.1,3163.5,3.18243742]